[Event "FIDE Grand Swiss 2023"]
[Site "Villa Marina, Douglas, Isle of Man"]
[Date "2023.11.03"]
[Round "9.24"]
[White "Petrosyan, Manuel"]
[Black "Xiong, Jeffery"]
[Result "1-0"]
[WhiteElo "2604"]
[BlackElo "2693"]
[EventDate "2023.10.25"]
[ECO "C42"]
[PlyCount "69"]
[BlackClock "00:00:03"]
[BlackFideId "2047640"]
[TimeControl "40/100 + 20/50 + 15 + 30s/move"]
[WhiteClock "00:40:47"]
[WhiteFideId "13300857"]

1.e4 {[%clk 01:38:28][%emt 00:02:32]} 1...e5 {[%clk 01:40:56][%emt 00:00:03]} 
2.Nf3 {[%clk 01:38:52][%emt 00:00:07]} 2...Nf6 {[%clk 01:41:13][%emt 00:00:12]} 
3.Nxe5 {[%clk 01:38:31][%emt 00:00:52]} 3...d6 {[%clk 01:41:40][%emt 00:00:03]} 
4.Nf3 {[%clk 01:38:36][%emt 00:00:25]} 4...Nxe4 {[%clk 01:42:05][%emt 00:00:04]} 
5.d4 {[%clk 01:38:52][%emt 00:00:14]} 5...d5 {[%clk 01:42:26][%emt 00:00:09]} 
6.Bd3 {[%clk 01:39:16][%emt 00:00:07]} 6...Be7 {[%clk 01:41:52][%emt 00:01:04]} 
7.O-O {[%clk 01:39:15][%emt 00:00:31]} 7...Bf5 {[%clk 01:42:18][%emt 00:00:03]} 
8.Re1 {[%clk 01:38:31][%emt 00:01:14]} 8...O-O {[%clk 01:40:30][%emt 00:02:18]} 
9.c4 {[%clk 01:37:22][%emt 00:01:41]} 9...Nc6 {[%clk 01:40:37][%emt 00:00:23]} 
10.cxd5 {[%clk 01:37:38][%emt 00:00:13]} 10...Qxd5 {[%clk 01:41:03][%emt
00:00:03]} 11.Nc3 {[%clk 01:37:57][%emt 00:00:12]} 11...Nxc3 {[%clk
01:41:28][%emt 00:00:06]} 12.bxc3 {[%clk 01:38:23][%emt 00:00:03]} 12...Bxd3 
{[%clk 01:20:09][%emt 00:21:49]} 13.Qxd3 {[%clk 01:38:47][%emt 00:00:06]} 
13...Rae8 {[%clk 01:20:28][%emt 00:00:09]} 14.Rb1 {[%clk 01:36:41][%emt
00:02:38]} 14...b6 {[%clk 00:59:31][%emt 00:21:27]} 15.Bf4 {[%clk 01:35:01][%emt
00:02:10]} 15...Bd6 {[%clk 00:48:19][%emt 00:11:42]} 16.Ng5 {[%clk
01:34:27][%emt 00:01:04]} 16...f5 {[%clk 00:37:28][%emt 00:11:20]} 17.Bxd6 
{[%clk 01:34:25][%emt 00:00:33]} 17...cxd6 {[%clk 00:36:48][%emt 00:01:09]} 
18.h4 {[%clk 01:34:29][%emt 00:00:26]} 18...h6 {[%clk 00:35:45][%emt 00:01:33]} 
19.Nh3 {[%clk 01:33:50][%emt 00:01:10]} 19...Re4 {[%clk 00:35:03][%emt
00:01:12]} 20.f3 {[%clk 01:33:57][%emt 00:00:23]} 20...Rxh4 {[%clk
00:28:20][%emt 00:07:13]} 21.Qb5 {[%clk 01:31:40][%emt 00:02:47]} 21...Qxb5 
{[%clk 00:27:45][%emt 00:01:05]} 22.Rxb5 {[%clk 01:32:06][%emt 00:00:04]} 
22...Kh7 {[%clk 00:07:48][%emt 00:20:27]} 23.Rd5 {[%clk 01:13:40][%emt
00:18:56]} 23...Rf6 {[%clk 00:07:55][%emt 00:00:22]} 24.Nf2 {[%clk
01:07:52][%emt 00:06:19]} 24...Na5 {[%clk 00:06:55][%emt 00:01:30]} 25.g3 
{[%clk 00:59:21][%emt 00:09:01]} 25...Rg6 {[%clk 00:06:46][%emt 00:00:38]} 
26.Kg2 {[%clk 00:56:54][%emt 00:02:57]} 26...f4 {[%clk 00:07:14][%emt 00:00:03]} 
27.Ng4 {[%clk 00:56:57][%emt 00:00:27]} 27...Rhxg4 {[%clk 00:07:21][%emt
00:00:22]} 28.fxg4 {[%clk 00:57:22][%emt 00:00:05]} 28...Rxg4 {[%clk
00:07:48][%emt 00:00:02]} 29.Kf3 {[%clk 00:57:36][%emt 00:00:16]} 29...Rxg3+ 
{[%clk 00:05:53][%emt 00:02:25]} 30.Kxf4 {[%clk 00:58:02][%emt 00:00:04]} 
30...Rxc3 {[%clk 00:04:51][%emt 00:01:33]} 31.Rxd6 {[%clk 00:58:25][%emt
00:00:08]} 31...Rc7 {[%clk 00:03:35][%emt 00:01:44]} 32.Rde6 {[%clk
00:45:49][%emt 00:13:07]} 32...Rf7+ {[%clk 00:02:55][%emt 00:01:10]} 33.Ke4 
{[%clk 00:44:45][%emt 00:01:34]} 33...Rf2 {[%clk 00:02:44][%emt 00:00:40]} 
34.Kd5 {[%clk 00:42:16][%emt 00:02:59]} 34...Rxa2 {[%clk 00:00:59][%emt
00:02:16]} 35.Rg1 {[%clk 00:40:47] [%emt 00:01:59]} 1-0

[Event "FIDE Grand Swiss 2023"]
[Site "Villa Marina, Douglas, Isle of Man"]
[Date "2023.11.03"]
[Round "9.25"]
[White "Harikrishna, Pentala"]
[Black "Melkumyan, Hrant"]
[Result "1-0"]
[WhiteElo "2716"]
[BlackElo "2650"]
[EventDate "2023.10.25"]
[ECO "C67"]
[PlyCount "77"]
[BlackClock "00:01:01"]
[BlackFideId "13302485"]
[TimeControl "40/100 + 20/50 + 15 + 30s/move"]
[WhiteClock "00:19:13"]
[WhiteFideId "5007003"]

1.e4 {[%clk 01:40:51][%emt 00:00:07]} 1...e5 {[%clk 01:40:43][%emt 00:00:17]} 
2.Nf3 {[%clk 01:41:11][%emt 00:00:10]} 2...Nc6 {[%clk 01:41:06][%emt 00:00:07]} 
3.Bb5 {[%clk 01:41:16][%emt 00:00:25]} 3...Nf6 {[%clk 01:41:24][%emt 00:00:12]} 
4.O-O {[%clk 01:41:40][%emt 00:00:07]} 4...Nxe4 {[%clk 01:41:42][%emt 00:00:12]} 
5.Re1 {[%clk 01:42:07][%emt 00:00:03]} 5...Nd6 {[%clk 01:41:56][%emt 00:00:16]} 
6.Nxe5 {[%clk 01:42:32][%emt 00:00:06]} 6...Be7 {[%clk 01:42:01][%emt 00:00:25]} 
7.Bf1 {[%clk 01:42:56][%emt 00:00:06]} 7...Nxe5 {[%clk 01:41:55][%emt 00:00:35]} 
8.Rxe5 {[%clk 01:43:22][%emt 00:00:04]} 8...O-O {[%clk 01:42:09][%emt 00:00:16]} 
9.d4 {[%clk 01:43:49][%emt 00:00:03]} 9...Bf6 {[%clk 01:41:51][%emt 00:00:48]} 
10.Re1 {[%clk 01:44:12][%emt 00:00:06]} 10...Re8 {[%clk 01:42:13][%emt
00:00:09]} 11.Nc3 {[%clk 01:39:54][%emt 00:04:49]} 11...Rxe1 {[%clk
01:27:33][%emt 00:15:10]} 12.Qxe1 {[%clk 01:40:18][%emt 00:00:05]} 12...Bxd4 
{[%clk 01:20:12][%emt 00:07:52]} 13.Bf4 {[%clk 01:39:20][%emt 00:01:27]} 
13...Ne8 {[%clk 01:16:45][%emt 00:03:57]} 14.Nd5 {[%clk 01:37:56][%emt
00:01:54]} 14...d6 {[%clk 01:12:30][%emt 00:04:46]} 15.Bg5 {[%clk 01:34:10][%emt
00:04:14]} 15...f6 {[%clk 01:09:11][%emt 00:03:50]} 16.Bh4 {[%clk 01:34:04][%emt
00:00:35]} 16...Be5 {[%clk 00:56:49][%emt 00:12:52]} 17.f4 {[%clk 01:12:04][%emt
00:22:31]} 17...c6 {[%clk 00:55:07][%emt 00:02:12]} 18.fxe5 {[%clk
01:02:08][%emt 00:10:26]} 18...cxd5 {[%clk 00:54:48][%emt 00:00:47]} 19.exf6 
{[%clk 00:58:15][%emt 00:04:24]} 19...Nxf6 {[%clk 00:55:10][%emt 00:00:08]} 
20.Bd3 {[%clk 00:55:58][%emt 00:02:47]} 20...Bd7 {[%clk 00:49:20][%emt
00:06:20]} 21.Kh1 {[%clk 00:52:28][%emt 00:03:59]} 21...a5 {[%clk 00:38:48][%emt
00:11:04]} 22.Qg1 {[%clk 00:47:34][%emt 00:05:23]} 22...Qe7 {[%clk
00:27:24][%emt 00:11:54]} 23.Re1 {[%clk 00:46:47][%emt 00:01:17]} 23...Qf7 
{[%clk 00:25:21][%emt 00:02:33]} 24.Rf1 {[%clk 00:46:49][%emt 00:00:28]} 
24...Re8 {[%clk 00:24:04][%emt 00:01:47]} 25.Qb6 {[%clk 00:42:55][%emt
00:04:25]} 25...Bc6 {[%clk 00:23:19][%emt 00:01:15]} 26.Qxa5 {[%clk
00:37:18][%emt 00:06:06]} 26...Qe6 {[%clk 00:21:41][%emt 00:02:08]} 27.Bxf6 
{[%clk 00:34:49][%emt 00:02:59]} 27...gxf6 {[%clk 00:21:37][%emt 00:00:34]} 
28.Qb4 {[%clk 00:33:14][%emt 00:02:05]} 28...Re7 {[%clk 00:14:55][%emt
00:07:12]} 29.Qh4 {[%clk 00:32:51][%emt 00:00:53]} 29...d4 {[%clk 00:13:34][%emt
00:01:51]} 30.Rxf6 {[%clk 00:29:28][%emt 00:03:52]} 30...Qe1+ {[%clk
00:11:31][%emt 00:02:34]} 31.Qxe1 {[%clk 00:28:57][%emt 00:01:01]} 31...Rxe1+ 
{[%clk 00:11:56][%emt 00:00:05]} 32.Rf1 {[%clk 00:29:17][%emt 00:00:10]} 
32...Re5 {[%clk 00:08:11][%emt 00:04:15]} 33.Kg1 {[%clk 00:26:15][%emt
00:03:32]} 33...Be4 {[%clk 00:07:54][%emt 00:00:47]} 34.Bxe4 {[%clk
00:22:33][%emt 00:04:12]} 34...Rxe4 {[%clk 00:08:19][%emt 00:00:05]} 35.Kf2 
{[%clk 00:20:43][%emt 00:02:20]} 35...Re5 {[%clk 00:07:44][%emt 00:01:05]} 
36.Rd1 {[%clk 00:19:19][%emt 00:01:54]} 36...Rc5 {[%clk 00:05:42][%emt
00:02:32]} 37.Rd2 {[%clk 00:18:55][%emt 00:00:53]} 37...Kf7 {[%clk
00:05:58][%emt 00:00:15]} 38.Kf3 {[%clk 00:18:57][%emt 00:00:28]} 38...Ke6 
{[%clk 00:01:52][%emt 00:04:36]} 39.Ke4 {[%clk 00:19:13][%emt 00:00:14]} 1-0

[Event "FIDE Grand Swiss 2023"]
[Site "Villa Marina, Douglas, Isle of Man"]
[Date "2023.11.03"]
[Round "9.26"]
[White "Van Foreest, Jorden"]
[Black "Aryan, Chopra"]
[Result "1/2-1/2"]
[WhiteElo "2707"]
[BlackElo "2634"]
[EventDate "2023.10.25"]
[ECO "B33"]
[PlyCount "98"]
[BlackClock "00:09:07"]
[BlackFideId "5084423"]
[TimeControl "40/100 + 20/50 + 15 + 30s/move"]
[WhiteClock "00:07:52"]
[WhiteFideId "1039784"]

1.e4 {[%clk 01:40:21][%emt 00:00:38]} 1...c5 {[%clk 01:40:55][%emt 00:00:06]} 
2.Nf3 {[%clk 01:40:11][%emt 00:00:40]} 2...Nc6 {[%clk 01:41:20][%emt 00:00:06]} 
3.d4 {[%clk 01:39:51][%emt 00:00:50]} 3...cxd4 {[%clk 01:41:44][%emt 00:00:06]} 
4.Nxd4 {[%clk 01:40:14][%emt 00:00:07]} 4...Nf6 {[%clk 01:42:09][%emt 00:00:05]} 
5.Nc3 {[%clk 01:40:14][%emt 00:00:29]} 5...e5 {[%clk 01:42:21][%emt 00:00:19]} 
6.Ndb5 {[%clk 01:39:59][%emt 00:00:45]} 6...d6 {[%clk 01:42:44][%emt 00:00:07]} 
7.Bg5 {[%clk 01:39:56][%emt 00:00:33]} 7...a6 {[%clk 01:42:57][%emt 00:00:18]} 
8.Na3 {[%clk 01:40:18][%emt 00:00:07]} 8...b5 {[%clk 01:42:53][%emt 00:00:35]} 
9.Nd5 {[%clk 01:40:35][%emt 00:00:12]} 9...Be7 {[%clk 01:42:52][%emt 00:00:30]} 
10.Nxe7 {[%clk 01:40:42][%emt 00:00:24]} 10...Nxe7 {[%clk 01:33:37][%emt
00:09:45]} 11.Bxf6 {[%clk 01:40:13][%emt 00:00:58]} 11...gxf6 {[%clk
01:34:02][%emt 00:00:05]} 12.Qd2 {[%clk 01:39:21][%emt 00:01:22]} 12...d5 
{[%clk 01:16:44][%emt 00:17:49]} 13.exd5 {[%clk 01:37:18][%emt 00:02:32]} 
13...Qxd5 {[%clk 01:16:43][%emt 00:00:32]} 14.O-O-O {[%clk 01:33:25][%emt
00:04:23]} 14...Qxd2+ {[%clk 01:09:06][%emt 00:08:08]} 15.Rxd2 {[%clk
01:33:48][%emt 00:00:06]} 15...Be6 {[%clk 01:09:12][%emt 00:00:24]} 16.c4 
{[%clk 01:26:24][%emt 00:07:54]} 16...Nf5 {[%clk 01:00:18][%emt 00:09:24]} 
17.b3 {[%clk 01:20:41][%emt 00:06:13]} 17...bxc4 {[%clk 00:57:49][%emt
00:03:00]} 18.Bxc4 {[%clk 01:20:33][%emt 00:00:37]} 18...Ke7 {[%clk
00:56:47][%emt 00:01:33]} 19.Rhd1 {[%clk 01:16:06][%emt 00:04:57]} 19...Rhc8 
{[%clk 00:53:33][%emt 00:03:44]} 20.Kb2 {[%clk 01:15:49][%emt 00:00:46]} 
20...Rc7 {[%clk 00:51:09][%emt 00:02:54]} 21.Bd3 {[%clk 01:06:51][%emt
00:09:26]} 21...Nd4 {[%clk 00:36:04][%emt 00:15:37]} 22.Nc2 {[%clk
01:06:30][%emt 00:00:51]} 22...Nxc2 {[%clk 00:36:17][%emt 00:00:17]} 23.Rxc2 
{[%clk 00:56:45][%emt 00:10:14]} 23...Rxc2+ {[%clk 00:33:41][%emt 00:03:08]} 
24.Kxc2 {[%clk 00:52:30][%emt 00:04:45]} 24...f5 {[%clk 00:33:37][%emt
00:00:34]} 25.g3 {[%clk 00:44:20][%emt 00:08:39]} 25...a5 {[%clk 00:28:29][%emt
00:05:39]} 26.Kb2 {[%clk 00:43:32][%emt 00:01:17]} 26...Rb8 {[%clk
00:21:52][%emt 00:07:08]} 27.Rc1 {[%clk 00:40:38][%emt 00:03:23]} 27...Kd6 
{[%clk 00:18:54][%emt 00:03:29]} 28.Bc4 {[%clk 00:37:43][%emt 00:03:24]} 
28...Rb4 {[%clk 00:15:16][%emt 00:04:09]} 29.a3 {[%clk 00:37:27][%emt 00:00:46]} 
29...Rb8 {[%clk 00:15:28][%emt 00:00:17]} 30.Bxe6 {[%clk 00:35:45][%emt
00:02:11]} 30...fxe6 {[%clk 00:15:54][%emt 00:00:05]} 31.Rc4 {[%clk
00:36:10][%emt 00:00:05]} 31...e4 {[%clk 00:15:39][%emt 00:00:45]} 32.b4 {[%clk
00:35:28][%emt 00:01:12]} 32...axb4 {[%clk 00:14:06][%emt 00:02:03]} 33.a4 
{[%clk 00:28:35][%emt 00:07:22]} 33...b3 {[%clk 00:08:10][%emt 00:06:27]} 34.a5 
{[%clk 00:28:41][%emt 00:00:24]} 34...Ra8 {[%clk 00:08:33][%emt 00:00:07]} 
35.Ra4 {[%clk 00:29:01][%emt 00:00:10]} 35...Ra6 {[%clk 00:09:00][%emt
00:00:04]} 36.Kxb3 {[%clk 00:28:45][%emt 00:00:45]} 36...Kc5 {[%clk
00:09:27][%emt 00:00:03]} 37.Kc3 {[%clk 00:26:55][%emt 00:02:20]} 37...Kb5 
{[%clk 00:05:46][%emt 00:04:12]} 38.Ra1 {[%clk 00:25:20][%emt 00:02:04]} 
38...e5 {[%clk 00:06:12][%emt 00:00:03]} 39.Kd2 {[%clk 00:11:47][%emt 00:14:04]} 
39...Rxa5 {[%clk 00:05:59][%emt 00:00:44]} 40.Rxa5+ {[%clk 00:12:01][%emt
00:00:15]} 40...Kxa5 {[%clk 00:06:24][%emt 00:00:05]} 41.g4 {[%clk
00:08:03][%emt 00:04:27]} 41...fxg4 {[%clk 00:06:47][%emt 00:00:08]} 42.Ke3 
{[%clk 00:08:28][%emt 00:00:04]} 42...Kb4 {[%clk 00:07:12][%emt 00:00:06]} 
43.Kxe4 {[%clk 00:08:52][%emt 00:00:06]} 43...Kc3 {[%clk 00:07:39][%emt
00:00:03]} 44.Kxe5 {[%clk 00:09:01][%emt 00:00:21]} 44...Kd3 {[%clk
00:08:02][%emt 00:00:06]} 45.Kf4 {[%clk 00:09:08][%emt 00:00:23]} 45...Ke2 
{[%clk 00:08:27][%emt 00:00:05]} 46.Kg3 {[%clk 00:09:01][%emt 00:00:37]} 
46...h5 {[%clk 00:07:58][%emt 00:01:00]} 47.h3 {[%clk 00:08:09][%emt 00:01:22]} 
47...Ke1 {[%clk 00:08:15][%emt 00:00:13]} 48.hxg4 {[%clk 00:07:30][%emt
00:01:09]} 48...hxg4 {[%clk 00:08:41] [%emt 00:00:04]} 49.Kxg4 {[%clk 00:07:56]
[%emt 00:00:03]} 49...Kxf2 {[%clk 00:09:07] [%emt 00:00:05]} 1/2-1/2

[Event "FIDE Grand Swiss 2023"]
[Site "Villa Marina, Douglas, Isle of Man"]
[Date "2023.11.03"]
[Round "9.28"]
[White "L'ami, Erwin"]
[Black "Sargissian, Gabriel"]
[Result "1/2-1/2"]
[WhiteElo "2627"]
[BlackElo "2686"]
[EventDate "2023.10.25"]
[ECO "D02"]
[PlyCount "121"]
[BlackFideId "13300881"]
[TimeControl "40/100 + 20/50 + 15 + 30s/move"]
[WhiteFideId "1007998"]

1.d4 {[%clk 01:40:48][%emt 00:00:10]} 1...d5 {[%clk 01:40:19][%emt 00:00:42]} 
2.Nf3 {[%clk 01:40:52][%emt 00:00:26]} 2...Nf6 {[%clk 01:40:40][%emt 00:00:08]} 
3.Bf4 {[%clk 01:41:10][%emt 00:00:12]} 3...Bf5 {[%clk 01:40:49][%emt 00:00:22]} 
4.e3 {[%clk 01:41:09][%emt 00:00:30]} 4...e6 {[%clk 01:40:33][%emt 00:00:47]} 
5.Bd3 {[%clk 01:41:11][%emt 00:00:27]} 5...Bxd3 {[%clk 01:34:09][%emt 00:06:55]} 
6.cxd3 {[%clk 01:41:17][%emt 00:00:23]} 6...c5 {[%clk 01:28:40][%emt 00:06:00]} 
7.Nc3 {[%clk 01:40:54][%emt 00:00:53]} 7...Nc6 {[%clk 01:09:32][%emt 00:19:38]} 
8.O-O {[%clk 01:40:51][%emt 00:00:32]} 8...Be7 {[%clk 01:05:37][%emt 00:04:26]} 
9.dxc5 {[%clk 01:16:46][%emt 00:24:35]} 9...Bxc5 {[%clk 01:05:59][%emt
00:00:08]} 10.Ne2 {[%clk 01:14:36][%emt 00:02:39]} 10...O-O {[%clk
01:04:39][%emt 00:01:50]} 11.Ne5 {[%clk 01:06:45][%emt 00:08:21]} 11...Nxe5 
{[%clk 01:02:27][%emt 00:02:42]} 12.Bxe5 {[%clk 01:07:08][%emt 00:00:07]} 
12...Nd7 {[%clk 01:00:32][%emt 00:02:25]} 13.Bc3 {[%clk 01:03:49][%emt
00:03:49]} 13...Rc8 {[%clk 00:58:44][%emt 00:02:19]} 14.Qb3 {[%clk
01:00:40][%emt 00:03:38]} 14...b6 {[%clk 00:42:54][%emt 00:16:20]} 15.Rfc1 
{[%clk 00:51:42][%emt 00:09:28]} 15...Be7 {[%clk 00:41:16][%emt 00:02:08]} 
16.Qd1 {[%clk 00:42:39][%emt 00:09:33]} 16...a6 {[%clk 00:34:01][%emt 00:07:46]} 
17.Rc2 {[%clk 00:39:52][%emt 00:03:16]} 17...Nb8 {[%clk 00:31:40][%emt
00:02:52]} 18.Rac1 {[%clk 00:38:11][%emt 00:02:11]} 18...Qd7 {[%clk
00:28:45][%emt 00:03:26]} 19.Bd4 {[%clk 00:34:26][%emt 00:04:14]} 19...b5 
{[%clk 00:29:02][%emt 00:00:13]} 20.Bc5 {[%clk 00:33:52][%emt 00:01:03]} 
20...Bxc5 {[%clk 00:27:32][%emt 00:02:01]} 21.Rxc5 {[%clk 00:34:15][%emt
00:00:06]} 21...Rxc5 {[%clk 00:27:53][%emt 00:00:11]} 22.Rxc5 {[%clk
00:34:37][%emt 00:00:06]} 22...Rc8 {[%clk 00:28:18][%emt 00:00:06]} 23.Qc2 
{[%clk 00:28:23][%emt 00:06:43]} 23...Rxc5 {[%clk 00:27:23][%emt 00:01:26]} 
24.Qxc5 {[%clk 00:28:45][%emt 00:00:07]} 24...Qc6 {[%clk 00:27:42][%emt
00:00:12]} 25.d4 {[%clk 00:25:14][%emt 00:04:01]} 25...Qxc5 {[%clk
00:25:35][%emt 00:02:38]} 26.dxc5 {[%clk 00:25:27][%emt 00:00:16]} 26...Kf8 
{[%clk 00:24:06][%emt 00:01:59]} 27.Nd4 {[%clk 00:23:51][%emt 00:02:06]} 
27...Ke8 {[%clk 00:22:40][%emt 00:01:55]} 28.b4 {[%clk 00:19:20][%emt 00:05:02]} 
28...e5 {[%clk 00:21:56][%emt 00:01:14]} 29.Nb3 {[%clk 00:18:57][%emt 00:00:53]} 
29...Nc6 {[%clk 00:21:13][%emt 00:01:13]} 30.a3 {[%clk 00:19:18][%emt 00:00:09]} 
30...e4 {[%clk 00:18:34][%emt 00:03:10]} 31.f4 {[%clk 00:15:34][%emt 00:04:13]} 
31...exf3 {[%clk 00:17:51][%emt 00:01:12]} 32.gxf3 {[%clk 00:15:56][%emt
00:00:08]} 32...Ne5 {[%clk 00:17:17][%emt 00:01:04]} 33.Nd4 {[%clk
00:15:18][%emt 00:01:08]} 33...Nc4 {[%clk 00:17:36][%emt 00:00:11]} 34.Nc2 
{[%clk 00:15:27][%emt 00:00:21]} 34...Kd7 {[%clk 00:15:02][%emt 00:03:05]} 
35.f4 {[%clk 00:13:21][%emt 00:02:35]} 35...a5 {[%clk 00:04:19][%emt 00:11:15]} 
36.Kf2 {[%clk 00:12:00][%emt 00:01:49]} 36...Nxa3 {[%clk 00:02:43][%emt
00:02:07]} 37.Nxa3 {[%clk 00:11:07][%emt 00:01:22]} 37...axb4 {[%clk
00:03:07][%emt 00:00:07]} 38.Nb1 {[%clk 00:03:25][%emt 00:08:12]} 38...b3 
{[%clk 00:03:32][%emt 00:00:05]} 39.Nd2 {[%clk 00:00:46][%emt 00:03:09]} 
39...b2 {[%clk 00:03:42][%emt 00:00:21]} 40.Ke2 {[%clk 00:01:09][%emt 00:00:06]} 
40...Kc6 {[%clk 00:03:52][%emt 00:00:20]} 41.Kd3 {[%clk 00:49:10][%emt
00:02:28]} 41...Kxc5 {[%clk 00:53:11][%emt 00:01:12]} 42.Kc2 {[%clk
00:41:19][%emt 00:08:20]} 42...d4 {[%clk 00:47:49][%emt 00:05:53]} 43.e4 {[%clk
00:39:16][%emt 00:02:33]} 43...Kb4 {[%clk 00:27:13][%emt 00:21:07]} 44.Kxb2 
{[%clk 00:32:54][%emt 00:06:51]} 44...d3 {[%clk 00:27:37][%emt 00:00:06]} 45.e5 
{[%clk 00:25:41][%emt 00:07:43]} 45...g6 {[%clk 00:26:41][%emt 00:01:27]} 
46.Ne4 {[%clk 00:13:59][%emt 00:12:12]} 46...Kc4 {[%clk 00:26:18][%emt
00:00:53]} 47.Nd6+ {[%clk 00:13:02][%emt 00:01:27]} 47...Kd4 {[%clk
00:26:41][%emt 00:00:07]} 48.Kc1 {[%clk 00:09:46][%emt 00:03:45]} 48...Ke3 
{[%clk 00:22:13][%emt 00:04:58]} 49.Kd1 {[%clk 00:09:30][%emt 00:00:46]} 
49...Kxf4 {[%clk 00:20:03][%emt 00:02:42]} 50.Nxf7 {[%clk 00:09:39][%emt
00:00:20]} 50...Kf5 {[%clk 00:19:42][%emt 00:00:50]} 51.Kd2 {[%clk
00:09:11][%emt 00:00:59]} 51...Ke6 {[%clk 00:19:49][%emt 00:00:23]} 52.Nd6 
{[%clk 00:08:41][%emt 00:01:00]} 52...Kxe5 {[%clk 00:20:01][%emt 00:00:18]} 
53.Nxb5 {[%clk 00:09:06][%emt 00:00:05]} 53...Ke4 {[%clk 00:19:49][%emt
00:00:41]} 54.Nd6+ {[%clk 00:08:20][%emt 00:01:16]} 54...Kf3 {[%clk
00:19:38][%emt 00:00:41]} 55.Kxd3 {[%clk 00:08:38][%emt 00:00:12]} 55...Kg2 
{[%clk 00:19:49][%emt 00:00:20]} 56.Ke3 {[%clk 00:08:24][%emt 00:00:43]} 
56...Kxh2 {[%clk 00:19:41][%emt 00:00:37]} 57.Kf4 {[%clk 00:08:47][%emt
00:00:08]} 57...h5 {[%clk 00:19:53][%emt 00:00:19]} 58.Ne4 {[%clk 00:09:02][%emt
00:00:14]} 58...Kg2 {[%clk 00:20:08][%emt 00:00:15]} 59.Ng5 {[%clk 00:09:14]
[%emt 00:00:19]} 59...Kf2 {[%clk 00:20:18][%emt 00:00:20]} 60.Nh3+ {[%clk
00:09:33][%emt 00:00:11]} 60...Kg2 {[%clk 00:20:43][%emt 00:00:05]} 61.Ng5 
{[%clk 00:09:14][%emt 00:00:19]} 1/2-1/2